bitfinex/quotes_SOLUSD_20250915
["timestamp","ask_amount","ask_price","bid_price","bid_amount"]
[1757899979203,3.56947589,242.34,242.27,4.8474937]
[1757899979411,3.56947589,242.33,242.27,8.41696959]
[1757899979577,3.56947589,242.33,242.27,4.8474937]
[1757899979777,3.56947589,242.33,242.27,8.41696959]
[1757899980207,3.56947589,242.33,242.27,4.8474937]
[1757899980377,3.56947589,242.28,242.23,4.84818911]
[1757899980705,26.0,242.32,242.27,3.56947589]
[1757899980874,3.56947589,242.34,242.28,4.28947589]
[1757899981076,3.56947589,242.35,242.29,3.56947589]
[1757899981382,26.0,242.38,242.29,3.56947589]
[1757899981593,3.56947589,242.33,242.26,3.56947589]
[1757899981773,0.52,242.32,242.21,6.5869126]
[1757899981974,2.45838797,242.26,242.21,4.84852463]
[1757899982215,2.45838797,242.23,242.17,7.30768196]
[1757899982375,2.45838797,242.19,242.13,0.72]
[1757899982579,2.45838797,242.19,242.13,3.17838797]
[1757899982780,2.45838797,242.21,242.15,2.45838797]
[1757899983012,4.6479972,242.25,242.15,0.72]
[1757899983305,2.45838797,242.19,242.15,0.72]
[1757899983502,2.45838797,242.18,242.11,0.72]
[1757899983692,2.45838797,242.15,242.08,2.45838797]
[1757899983894,2.45838797,242.15,242.09,3.17838797]
[1757899984104,2.45838797,242.15,242.09,0.72]
[1757899984302,2.45838797,242.15,242.1,4.13052457]
[1757899984516,2.45838797,242.15,242.1,4.85052457]
[1757899985386,2.45838797,242.13,242.1,0.72]
[1757899985909,2.45838797,242.13,242.09,4.13061979]
[1757899986090,2.45838797,242.12,242.07,4.13088574]
[1757899986294,2.45838797,242.09,242.02,32.88]
[1757899986616,2.45838797,242.06,242.0,4.13221804]
[1757899986908,40.45579566,242.12,241.98,4.85247718]
[1757899986909,2.45838797,242.03,241.98,4.85247718]
[1757899987093,2.45838797,242.03,241.99,0.72]
[1757899987293,2.45838797,242.02,241.99,0.72]
[1757899987513,0.52,242.13,242.0,0.72]
[1757899987714,2.45838797,242.11,242.05,2.45838797]
[1757899988027,2.45838797,242.13,242.07,2.45838797]
[1757899988186,2.45838797,242.14,242.08,2.45838797]
[1757899988494,2.45838797,242.15,242.09,2.45838797]
[1757899988696,2.45838797,242.16,242.1,2.45838797]
[1757899989200,2.45838797,242.15,242.08,3.17838797]
[1757899989409,2.45838797,242.11,242.07,4.13103647]
[1757899989601,0.52,242.15,242.05,4.13131191]
[1757899989799,2.45838797,242.1,242.05,4.13131191]
[1757899990117,2.45838797,242.09,242.05,4.13131191]
[1757899990326,2.45838797,242.11,242.06,0.69]
[1757899990493,2.45838797,242.11,242.07,4.13103647]
[1757899990680,26.0,242.14,242.07,4.13103647]
[1757899990884,26.0,242.2,242.1,2.45838797]
[1757899991083,2.45838797,242.16,242.1,2.45838797]
[1757899991380,2.45838797,242.17,242.1,2.45838797]
[1757899991584,2.45838797,242.14,242.07,4.13103647]
[1757899991812,2.45838797,242.12,242.05,4.82123568]
[1757899992001,2.45838797,242.12,242.05,7.27962365]
[1757899992414,2.45838797,242.12,242.05,3.14838797]
[1757899992620,2.45838797,242.12,242.01,0.69]
[1757899992621,2.45838797,242.07,242.01,0.69]
[1757899992918,2.45838797,242.05,242.01,0.69]
[1757899993099,26.0,242.09,241.99,2.45838797]
[1757899993298,2.45838797,242.08,242.02,0.69]
[1757899993622,2.45838797,242.04,241.99,0.69]
[1757899993911,2.45838797,242.03,241.99,0.69]
[1757899994118,26.52,242.09,241.98,32.94]
[1757899994119,2.45838797,242.02,241.98,32.94]
[1757899994289,0.52,242.07,241.98,32.94]
[1757899994486,4.13171856,242.04,241.98,32.94]
[1757899994685,2.45838797,242.02,241.98,32.94]
[1757899994911,4.13171856,242.04,241.95,3.14838797]
[1757899995118,2.45838797,242.02,241.96,0.69]
[1757899995500,4.65120174,242.07,241.96,0.69]
[1757899995501,2.45838797,242.0,241.96,0.69]
[1757899996000,2.45838797,242.0,241.93,0.69]
[1757899996192,2.45838797,242.0,241.94,4.1932173]
[1757899996515,2.45838797,241.99,241.94,0.06]
[1757899996707,2.45838797,241.97,241.94,0.06]
[1757899996914,2.45838797,241.99,241.95,0.69]
[1757899997219,0.52,242.08,241.95,3.14838797]
[1757899997423,26.0,242.07,241.97,2.45838797]
[1757899997589,2.45838797,242.04,241.97,2.45838797]
[1757899998314,26.0,242.07,241.99,2.45838797]
[1757899998525,2.45838797,242.06,242.0,4.1322314]
[1757899998815,2.45838797,242.05,241.98,7.28081749]
[1757899998993,2.45838797,242.03,241.98,4.82242952]
[1757899999492,26.0,242.07,241.99,0.69]
[1757899999700,2.45838797,242.04,241.98,4.13242952]
[1757899999913,2.45838797,242.0,241.94,0.06]
[1757900000108,2.45838797,241.99,241.94,4.19311578]
[1757900000527,0.52,242.05,241.94,7.34150375]
[1757900000817,2.45838797,242.0,241.94,7.34150375]
[1757900001022,0.52,242.01,241.94,0.06]
[1757900001224,2.45838797,241.96,241.94,0.06]
[1757900001400,0.52,242.01,241.94,0.06]
[1757900001734,2.45838797,241.98,241.94,0.06]
[1757900001900,2.45838797,241.99,241.94,4.19322059]
[1757900002221,2.45838797,242.0,241.94,7.34160856]
[1757900002518,2.45838797,242.02,241.96,2.45838797]
[1757900002698,2.45838797,242.02,241.97,4.13274372]
[1757900002905,4.13143791,242.05,241.97,4.13274372]
[1757900002906,2.45838797,242.03,241.97,6.59113169]
[1757900003106,30.13143791,242.05,241.97,6.59113169]
[1757900003107,2.45838797,242.04,241.98,3.14838797]
[1757900003300,2.45838797,242.04,241.98,0.69]
[1757900003498,2.45838797,242.02,241.98,0.69]
[1757900003700,2.45838797,242.02,241.97,4.13274372]
[1757900003921,2.45838797,242.02,241.97,4.82274372]
[1757900004105,2.45838797,242.04,241.98,3.14838797]
[1757900004710,2.45838797,242.04,241.99,4.13240216]
[1757900004906,2.45838797,242.04,241.99,4.82240216]
[1757900005110,4.13032895,242.12,242.03,2.45838797]
[1757900005426,2.45838797,242.07,242.0,2.45838797]
[1757900005591,2.45838797,242.06,241.99,17.61179554]
[1757900005792,2.45838797,242.03,241.99,4.13240216]
[1757900005998,0.52,242.08,241.96,0.69]
[1757900005999,2.45838797,242.02,241.97,4.13266298]
[1757900006223,2.45838797,242.02,241.98,0.69]
[1757900006526,26.0,242.06,241.99,0.69]
[1757900006696,2.45838797,242.04,241.97,6.59105095]
[1757900006896,2.45838797,242.05,241.98,0.69]
[1757900007092,28.45838797,242.06,241.99,2.45838797]
[1757900007300,28.45838797,242.06,241.99,3.14838797]
[1757900007501,2.45838797,242.05,241.99,0.69]
[1757900007705,2.45838797,242.05,241.98,2.45838797]
[1757900007706,2.45838797,242.03,241.97,4.13266298]
[1757900007918,4.65114804,242.07,241.97,4.13266298]
[1757900008296,4.65114804,242.07,241.97,6.59105095]
[1757900008822,4.65114804,242.07,241.96,0.69]
[1757900008823,2.45838797,242.02,241.96,0.69]
[1757900009119,2.45838797,242.01,241.95,4.13307943]
[1757900009314,2.45838797,241.99,241.94,0.06]
[1757900009495,2.45838797,241.98,241.94,0.06]
[1757900010300,30.13189899,242.02,241.94,0.75]
[1757900010514,2.45838797,241.97,241.94,0.06]
[1757900010721,26.0,242.0,241.94,0.06]
[1757900010722,2.45838797,241.96,241.94,0.06]
[1757900010911,2.45838797,241.95,241.94,0.06]
[1757900011313,28.45838797,241.95,241.94,0.06]
[1757900011630,28.97838797,241.95,241.94,0.06]
[1757900013000,42.57398198,241.95,241.94,0.06]
[1757900013997,40.11559401,241.95,241.94,0.06]
[1757900014223,26.0,241.96,241.94,0.06]
[1757900014429,26.0,241.97,241.94,0.06]
[1757900014637,16.05398198,242.01,241.94,4.19325015]
[1757900014801,28.45838797,242.03,241.94,6.65163812]
[1757900015002,5.78540407,242.04,241.97,4.13274372]
[1757900015229,0.52,242.06,241.97,4.13274372]
[1757900015230,32.92,242.05,241.97,4.13274372]
[1757900015426,26.0,242.02,241.97,4.13274372]
[1757900015619,26.0,242.02,241.98,0.69]
[1757900015926,26.0,242.03,241.98,0.69]
[1757900016125,4.13138303,242.05,241.98,0.69]
[1757900016325,33.46,242.06,241.98,3.14838797]
[1757900016628,32.92,242.08,242.0,2.45838797]
[1757900016804,26.0,242.05,242.0,2.45838797]
[1757900017001,2.45838797,242.1,242.02,2.45838797]
[1757900017206,4.1304729,242.11,242.03,0.69]
[1757900017629,26.0,242.09,242.03,0.69]
[1757900018220,4.1304729,242.11,242.03,0.69]
[1757900018522,26.0,242.09,242.03,4.82167882]
[1757900018724,38.62482904,242.12,242.03,4.13167882]
[1757900019025,26.0,242.09,242.02,2.45838797]
[1757900019224,26.0,242.09,242.01,4.13191172]
[1757900019628,26.0,242.09,242.02,2.45838797]
[1757900019812,26.0,242.08,242.02,6.59013626]
[1757900020011,26.0,242.08,242.01,2.45838797]
[1757900020229,2.45838797,242.05,241.97,2.45838797]
[1757900020543,28.45838797,242.03,241.96,4.13291453]
[1757900021108,2.45838797,242.01,241.95,0.68]
[1757900021308,2.45838797,242.01,241.95,4.81306559]
[1757900022146,32.9,242.06,241.96,2.45838797]
[1757900022425,26.0,242.06,241.99,2.45838797]
[1757900022831,26.0,242.06,242.01,2.45838797]
[1757900023007,26.0,242.07,242.02,0.68]
[1757900023212,35.35838797,242.1,242.03,0.68]
[1757900023429,35.35838797,242.1,242.03,3.13838797]
[1757900023621,61.35838797,242.1,242.03,3.13838797]
[1757900023822,28.45838797,242.1,242.03,3.13838797]
[1757900024014,26.0,242.1,242.04,6.58993647]
[1757900024702,33.10894136,242.1,242.03,2.45838797]
[1757900024908,2.45838797,242.08,242.01,4.1319098]
[1757900025617,2.45838797,242.08,242.01,6.59029777]
[1757900026005,6.58931958,242.08,242.01,4.1319098]
[1757900026228,2.45838797,242.08,242.01,4.1319098]
[1757900026416,2.45838797,242.08,242.01,6.59029777]
[1757900026618,2.45838797,242.07,242.01,4.1319098]
[1757900026825,2.45838797,242.06,242.0,0.68]
[1757900027212,2.45838797,242.06,242.0,4.81215948]
[1757900027621,2.45838797,242.07,242.0,4.81215948]
[1757900027834,2.45838797,242.08,242.01,2.45838797]
[1757900028040,28.45838797,242.09,242.03,4.1317192]
[1757900028428,2.77471741,242.08,242.03,4.1317192]
[1757900028632,2.77471741,242.08,242.03,4.8117192]
[1757900029351,2.77471741,242.08,242.04,3.13838797]
[1757900029525,26.0,242.1,242.06,2.45838797]
[1757900029725,26.0,242.1,242.07,0.68]
[1757900030133,26.0,242.11,242.08,0.68]
[1757900030343,26.0,242.11,242.08,3.13838797]
[1757900030720,4.67961533,242.16,242.1,2.45838797]
[1757900030721,0.03,242.16,242.1,2.45838797]
[1757900030940,26.03,242.16,242.11,2.45838797]
[1757900031129,0.03,242.16,242.13,2.45838797]
[1757900031329,0.03,242.16,242.14,3.13838797]
[1757900031846,0.03,242.16,242.11,3.13838797]
[1757900032054,0.03,242.16,242.12,4.13018338]
[1757900032220,0.03,242.16,242.14,2.45838797]
[1757900032422,0.03,242.16,242.15,2.45838797]
[1757900032644,0.03,242.16,242.14,2.45838797]
[1757900032844,0.03,242.16,242.14,0.68]
[1757900034048,0.03,242.16,242.12,6.58857135]
[1757900034219,0.03,242.16,242.09,10.32664514]
[1757900034220,2.48838797,242.16,242.08,4.13086582]
[1757900034420,2.45838797,242.15,242.08,6.58925379]
[1757900034949,2.45838797,242.11,242.06,4.13112489]
[1757900035239,2.45838797,242.1,242.06,4.13112489]
[1757900035434,2.45838797,242.11,242.06,4.81112489]
[1757900035638,2.45838797,242.12,242.07,0.72]
[1757900036030,2.45838797,242.12,242.07,4.85094525]
[1757900037133,2.45838797,242.1,242.05,4.13126395]
[1757900037331,2.45838797,242.1,242.04,0.72]
[1757900037526,2.45838797,242.09,242.04,0.72]
[1757900037742,2.45838797,242.08,242.01,0.72]
[1757900037945,2.45838797,242.07,242.01,4.85192698]
[1757900038347,2.45838797,242.06,242.01,4.85192698]
[1757900038553,2.45838797,242.07,242.02,0.72]
[1757900038851,2.45838797,242.05,241.99,6.59063201]
[1757900039238,2.45838797,242.05,241.99,4.13224404]
[1757900039440,2.45838797,242.06,242.0,0.72]
[1757900039646,30.13066101,242.1,242.0,3.17838797]
[1757900039948,28.45838797,242.08,242.01,3.17838797]
[1757900040143,28.45838797,242.08,242.02,4.13188992]
[1757900040747,28.45838797,242.08,242.01,3.17838797]
[1757900040748,2.45838797,242.06,242.01,4.85201507]
[1757900040947,2.45838797,242.05,242.0,0.06]
[1757900041327,2.45838797,242.06,242.01,0.72]
[1757900041527,2.45838797,242.02,242.0,0.06]
[1757900041753,26.0,242.04,242.0,0.06]
[1757900041754,3.56556913,242.01,242.0,0.06]
[1757900042104,17.68116314,242.01,242.0,0.06]
[1757900042240,24.58818523,242.01,242.0,0.06]
[1757900042957,21.0226161,242.01,242.0,0.06]
[1757900043261,24.58818523,242.01,242.0,0.06]
[1757900043668,28.03789335,242.01,242.0,0.06]
[1757900044143,30.13257293,241.98,241.97,0.06]
[1757900044454,69.3131035,241.98,241.97,0.06]
[1757900044748,69.8331035,241.98,241.97,0.06]
[1757900045328,32.86053057,241.98,241.97,0.06]
[1757900045533,6.34053057,241.98,241.97,0.06]
[1757900045734,3.56556913,241.98,241.97,0.06]
[1757900046174,13.59559401,242.04,241.97,0.78]
[1757900046374,3.56556913,242.01,241.97,4.91271321]
[1757900046590,26.0,242.0,241.97,0.78]
[1757900046751,3.56556913,241.99,241.97,0.06]
[1757900046948,3.56556913,241.99,241.97,0.78]
[1757900047180,46.43559401,242.04,241.97,0.06]
[1757900047373,3.56556913,242.01,241.98,0.72]
[1757900047578,2.77222739,242.06,241.99,0.72]
[1757900047872,3.56556913,242.05,241.99,4.28556913]
[1757900048175,29.56556913,242.05,242.01,4.13206065]
[1757900048355,26.0,242.05,242.02,0.72]
[1757900048567,26.0,242.06,242.03,0.71]
[1757900048762,3.56556913,242.04,241.99,4.84224997]
[1757900048964,3.56556913,242.04,242.0,0.71]
[1757900049168,3.56556913,242.04,242.01,0.71]
[1757900049483,3.56556913,242.02,241.97,0.06]
[1757900049772,3.56556913,241.98,241.97,0.06]
[1757900050358,3.56556913,241.98,241.97,0.77]
[1757900050565,3.56556913,241.99,241.97,0.77]
[1757900050869,3.56556913,241.99,241.97,0.06]
[1757900051263,26.0,242.01,241.98,0.71]
[1757900051471,3.56556913,242.04,241.99,0.71]
[1757900051670,13.59559401,242.05,241.99,0.71]
[1757900051671,3.56556913,242.03,241.99,0.71]
[1757900052578,3.56556913,242.03,242.0,4.1322314]
[1757900052978,2.77123201,242.06,242.0,4.1322314]
[1757900053279,3.56556913,242.09,242.03,3.56556913]
[1757900053655,2.77094207,242.1,242.03,3.56556913]
[1757900053656,26.0,242.08,242.03,3.56556913]
[1757900053883,26.0,242.08,242.04,0.71]
[1757900054254,3.56556913,242.1,242.05,0.71]
[1757900054469,3.56556913,242.13,242.08,4.13086582]
[1757900054854,3.56556913,242.13,242.08,4.84086582]
[1757900055173,2.77039685,242.14,242.09,0.71]
[1757900055353,36.42556913,242.15,242.1,0.71]
[1757900056062,26.0,242.15,242.11,0.71]
[1757900056278,26.0,242.15,242.09,3.56556913]
[1757900056279,0.03,242.16,242.12,0.71]
[1757900056461,3.56556913,242.13,242.03,0.71]
[1757900056660,3.56556913,242.09,242.03,4.27556913]
[1757900056876,26.0,242.11,242.03,0.71]
[1757900057182,3.56556913,242.1,242.04,0.71]
[1757900057353,3.56556913,242.08,242.01,0.71]
[1757900057550,3.56556913,242.07,242.01,4.27556913]
[1757900057753,26.0,242.1,242.05,3.56556913]
[1757900057949,3.56556913,242.12,242.06,0.71]
[1757900058569,2.77125421,242.13,242.07,4.13103647]
[1757900058763,43.16116314,242.14,242.08,0.71]
[1757900058967,29.56556913,242.14,242.08,4.27556913]
[1757900059167,26.0,242.14,242.09,3.56556913]
[1757900059366,3.59556913,242.16,242.1,4.27556913]
[1757900059588,0.03,242.16,242.1,4.27556913]
[1757900059973,0.03,242.13,242.1,4.27556913]
[1757900060273,0.03,242.13,242.11,0.71]
[1757900060682,0.03,242.13,242.12,4.84018338]
[1757900060858,0.03,242.13,242.12,8.40575251]
[1757900063682,0.03,242.13,242.12,34.40575251]
[1757900064687,0.03,242.13,242.12,67.24575251]
[1757900065291,0.03,242.13,242.12,34.40575251]
[1757900067372,0.03,242.13,242.12,47.00575251]
[1757900068092,3.28357449,242.28,242.12,77.98212786]
[1757900068392,4.08556913,242.28,242.22,3.56556913]
[1757900068595,4.08556913,242.28,242.23,3.56556913]
[1757900068596,0.52,242.28,242.23,3.56556913]
[1757900068896,0.52,242.28,242.24,4.12813738]
[1757900069192,26.0,242.29,242.24,18.01404997]
[1757900069382,3.56556913,242.25,242.2,4.12881915]
[1757900069583,3.56556913,242.22,242.2,4.12881915]
[1757900070266,3.56556913,242.22,242.17,10.32318093]
[1757900070473,3.56556913,242.22,242.16,7.69507028]
[1757900070776,3.56556913,242.22,242.16,4.12950115]
[1757900071085,4.12818373,242.24,242.16,4.12950115]
[1757900071394,3.56556913,242.21,242.16,4.12950115]
[1757900071771,3.56556913,242.21,242.17,0.71]
[1757900071972,3.56556913,242.23,242.17,0.71]
[1757900072277,3.56556913,242.23,242.17,3.56556913]
[1757900072482,3.56556913,242.23,242.16,18.01882317]
[1757900072788,3.56556913,242.25,242.17,0.71]
[1757900072989,3.56556913,242.24,242.16,47.27325404]
[1757900073181,3.56556913,242.22,242.16,50.83882317]
[1757900073370,4.08556913,242.22,242.16,4.12950115]
[1757900073771,3.56556913,242.2,242.16,4.12950115]
[1757900074183,13.59559401,242.24,242.16,4.12950115]
[1757900074386,3.56556913,242.21,242.16,4.12950115]
[1757900074977,0.52,242.29,242.18,3.56556913]
[1757900075182,3.56556913,242.24,242.18,4.12909071]
[1757900075383,3.56556913,242.19,242.15,4.1295166]
[1757900075600,3.56556913,242.2,242.15,4.8395166]
[1757900077098,0.52,242.19,242.09,0.71]
[1757900077283,3.56556913,242.17,242.09,0.71]
[1757900077490,3.56556913,242.19,242.12,3.56556913]
[1757900078079,3.56556913,242.17,242.1,3.56556913]
[1757900078283,3.56556913,242.15,242.09,3.56556913]
[1757900078492,3.56556913,242.16,242.1,3.56556913]
[1757900078690,3.56556913,242.16,242.15,0.06]
[1757900078891,3.56556913,242.17,242.15,0.06]
[1757900079087,3.56556913,242.16,242.15,0.06]
[1757900079584,17.68116314,242.16,242.15,0.06]
[1757900080910,21.81066429,242.16,242.15,0.06]
[1757900083188,24.57056712,242.16,242.15,0.06]
[1757900083403,24.57056712,242.16,242.12,0.06]
[1757900083404,39.59559401,242.13,242.12,0.06]
[1757900083603,43.16116314,242.13,242.12,0.06]
[1757900083822,43.68116314,242.13,242.12,0.06]
[1757900085124,42.3558293,242.13,242.12,0.06]
[1757900085325,43.16116314,242.13,242.12,0.06]
[1757900085632,47.81117594,242.13,242.12,0.06]
[1757900086028,50.57142491,242.13,242.12,0.06]
[1757900086203,47.00585578,242.13,242.12,0.06]
[1757900086403,50.57142491,242.13,242.12,1e-08]
[1757900086604,13.59559401,242.04,242.0,0.06]
[1757900086805,3.56556913,242.01,242.0,0.06]
[1757900087214,17.16116314,242.01,242.0,0.06]
[1757900091908,43.16116314,242.01,242.0,0.06]
[1757900096139,39.59559401,242.01,242.0,0.74]
[1757900096348,29.56556913,242.01,242.0,0.74]
[1757900096711,29.56556913,242.01,242.0,0.06]
[1757900097307,43.16116314,242.01,242.0,0.06]
[1757900098746,72.45559401,242.01,242.0,0.06]
[1757900098949,76.02116314,242.01,242.0,0.06]
[1757900099552,72.45559401,242.01,242.0,0.06]
[1757900099842,26.0,242.01,242.0,0.74]
[1757900100047,29.56556913,242.01,242.0,0.06]
[1757900100626,26.0,242.01,242.0,0.74]
[1757900100817,29.56556913,242.01,242.0,0.74]
[1757900101012,43.16116314,242.01,242.0,0.06]
[1757900101213,76.58116314,242.01,242.0,0.06]
[1757900101762,53.61270864,242.01,242.0,0.06]
[1757900102046,53.09270864,242.01,242.0,0.06]
[1757900102345,16.06064799,242.01,242.0,0.06]
[1757900102843,53.67270864,242.01,242.0,0.06]
[1757900103751,51.20765466,242.01,242.0,0.06]
[1757900103910,53.67270864,242.01,242.0,0.06]
[1757900104514,46.19322092,241.98,241.97,0.06]
[1757900104715,79.15322092,241.98,241.97,0.06]
[1757900104916,79.67322092,241.98,241.97,0.06]
[1757900105315,79.15322092,241.98,241.97,0.06]
[1757900105952,72.55559401,241.98,241.97,0.06]
[1757900106152,79.15322092,241.98,241.97,0.06]
[1757900106550,79.67322092,241.98,241.97,0.06]
[1757900108169,39.59559401,241.95,241.91,0.06]
[1757900108366,42.06064799,241.92,241.91,0.06]
[1757900108578,79.15424587,241.92,241.91,0.06]
[1757900108875,46.71424587,241.92,241.91,0.06]
[1757900109058,79.67424587,241.92,241.91,0.06]
[1757900109262,79.15424587,241.92,241.91,0.06]
[1757900109448,79.13424587,241.92,241.91,0.06]
[1757900111675,74.98064799,241.92,241.91,0.76]
[1757900112202,39.59559401,241.92,241.91,0.76]
[1757900112477,48.98064799,241.92,241.91,0.76]
[1757900112657,13.59559401,241.93,241.91,0.76]
[1757900112842,13.59559401,241.93,241.92,0.7]
[1757900113682,16.06064799,241.93,241.92,0.7]
[1757900114083,48.98064799,241.94,241.92,0.7]
[1757900114290,48.98064799,241.94,241.91,0.06]
[1757900114291,2.46505398,241.93,241.91,0.06]
[1757900114466,2.46505398,241.92,241.91,0.06]
[1757900115156,28.46505398,241.92,241.91,0.76]
[1757900115957,28.46505398,241.92,241.91,0.06]
[1757900115958,42.06064799,241.92,241.91,0.06]
[1757900116156,79.09424587,241.92,241.91,0.06]
[1757900116566,39.59559401,241.92,241.91,0.06]
[1757900116786,39.59559401,241.92,241.91,0.76]
[1757900117202,42.06064799,241.92,241.91,0.76]
[1757900117379,42.06064799,241.92,241.91,0.06]
[1757900118580,79.09424587,241.92,241.91,0.06]
[1757900119467,74.96064799,241.92,241.91,0.06]
[1757900119967,13.59559401,241.93,241.91,0.76]
[1757900120168,13.59559401,241.93,241.92,0.7]
[1757900120373,13.59559401,241.94,241.92,0.7]
[1757900120589,13.59559401,241.94,241.93,0.7]
[1757900120774,46.47559401,241.95,241.93,0.7]
[1757900121288,48.94064799,241.95,241.93,0.7]
[1757900122287,2.46505398,241.94,241.91,0.06]
[1757900122587,46.47559401,241.95,241.91,0.06]
[1757900122588,16.06064799,241.92,241.91,0.06]
[1757900122795,48.94064799,241.92,241.91,0.06]
[1757900122977,74.94064799,241.92,241.91,0.06]
[1757900123492,74.94064799,241.92,241.91,0.76]
[1757900123699,74.94064799,241.92,241.91,0.06]
[1757900123994,49.46064799,241.92,241.91,0.06]
[1757900124666,53.59424587,241.92,241.91,0.06]
[1757900124984,16.06064799,241.92,241.91,0.06]
[1757900125164,13.59559401,241.92,241.91,0.06]
[1757900125363,46.47559401,241.92,241.91,0.76]
[1757900125589,13.59559401,241.92,241.91,0.76]
[1757900125906,2.46505398,241.94,241.91,4.89376875]
[1757900126183,2.46505398,241.93,241.91,0.06]
[1757900126486,39.59559401,241.92,241.91,0.06]
[1757900126971,39.59559401,241.92,241.91,0.76]
[1757900127171,46.19424587,241.92,241.91,0.76]
[1757900127366,42.06064799,241.92,241.91,0.76]
[1757900127671,79.07424587,241.92,241.91,0.06]
[1757900127864,74.94064799,241.92,241.91,0.06]
[1757900128064,74.94064799,241.92,241.91,0.76]
[1757900128364,39.59559401,241.92,241.91,0.76]
[1757900129877,26.0,241.92,241.91,4.89376875]
[1757900130083,26.0,241.92,241.91,0.76]
[1757900130679,26.0,241.92,241.91,4.89376875]
[1757900132470,13.59559401,241.94,241.91,4.89376875]
[1757900132672,13.59559401,241.94,241.91,4.19376875]
[1757900133389,13.59559401,241.94,241.92,0.7]
[1757900133566,16.37435056,241.94,241.92,0.7]
[1757900134166,13.62559401,241.94,241.93,0.7]
[1757900134680,6.69646527,242.02,241.93,7.298481]
[1757900134980,0.03,241.97,241.94,0.7]
[1757900135379,0.03,241.97,241.95,0.7]
[1757900135774,0.03,241.97,241.93,4.13342702]
[1757900135986,0.03,241.97,241.94,0.7]
[1757900136291,5.2742709,241.97,241.94,0.7]
[1757900136671,5.2742709,241.97,241.95,0.7]
[1757900136870,2.80921692,241.97,241.96,0.7]
[1757900137789,2.80921692,241.97,241.93,0.7]
[1757900137981,5.2442709,241.96,241.93,4.83341265]
[1757900138182,13.62559401,241.97,241.95,4.13308534]
[1757900138377,13.62559401,241.97,241.91,10.39406042]
[1757900138378,2.77958403,241.96,241.92,4.13359788]
[1757900138583,39.62559401,241.97,241.92,4.78359788]
[1757900138802,39.59559401,241.92,241.91,0.06]
[1757900138993,42.37473853,241.92,241.91,0.06]
[1757900139490,39.59559401,241.92,241.91,4.84376875]
[1757900139670,39.59559401,241.92,241.91,0.71]
[1757900139871,42.37519781,241.92,241.91,0.71]
[1757900140082,42.37519781,241.92,241.91,0.06]
[1757900141779,79.91879569,241.92,241.91,0.06]
[1757900142590,82.38384967,241.92,241.91,0.06]
[1757900142772,85.85892673,241.92,241.91,0.06]
[1757900142971,82.38384967,241.92,241.91,0.06]
[1757900143167,79.91879569,241.92,241.91,0.06]
[1757900143386,85.30892673,241.92,241.91,0.06]
[1757900143598,81.83384967,241.92,241.91,0.06]
[1757900143811,85.85892673,241.92,241.91,0.06]
[1757900144178,82.38384967,241.92,241.91,0.06]
[1757900144376,81.83384967,241.92,241.91,0.06]
[1757900144579,82.38384967,241.92,241.91,0.06]
[1757900144777,81.83384967,241.92,241.91,0.06]
[1757900145399,82.38384967,241.92,241.91,0.06]
[1757900146178,85.85892673,241.92,241.91,0.06]
[1757900146809,82.38384967,241.92,241.91,0.06]
[1757900147880,13.59559401,241.91,241.89,0.06]
[1757900148086,51.72025179,241.9,241.89,0.06]
[1757900148292,13.59559401,241.89,241.88,0.06]
[1757900148505,18.84025179,241.89,241.88,0.06]
[1757900148698,19.39025179,241.89,241.88,0.06]
[1757900149199,23.52436233,241.89,241.88,0.06]
[1757900149779,22.97436233,241.89,241.88,0.06]
[1757900150094,27.00366489,241.89,241.88,0.06]
[1757900151470,23.52436233,241.89,241.88,0.06]
[1757900152773,28.42481445,241.89,241.88,0.06]
[1757900153405,28.42481445,241.89,241.87,0.06]
[1757900153406,160.92481445,241.89,241.87,0.06]
[1757900153607,39.59559401,241.86,241.83,0.06]
[1757900153786,39.59559401,241.84,241.83,0.06]